bitfinex-derivatives/quotes_BNBF0:USTF0_20250211
["timestamp","ask_amount","ask_price","bid_price","bid_amount"]
[1739267893615,0.31208064,640.86,638.5,0.28726894]
[1739267893915,0.31208064,640.86,638.51,0.28726894]
[1739267894110,0.31208064,640.86,638.52,0.28726894]
[1739267894310,0.31208064,640.86,638.53,0.28726894]
[1739267894516,0.31208064,640.86,638.54,0.28726894]
[1739267894718,0.31208064,640.86,638.55,0.28726894]
[1739267895014,0.31208064,640.86,638.56,0.28726894]
[1739267895314,0.31208064,640.86,638.57,0.28726894]
[1739267895511,0.31208064,640.86,638.58,0.28726894]
[1739267895715,0.31208064,640.86,638.59,0.28726894]
[1739267895917,0.31208064,640.86,638.47,0.65191886]
[1739267895918,0.31208064,640.86,638.6,0.28726894]
[1739267896220,0.31208064,640.86,638.61,0.28726894]
[1739267896515,0.31208064,640.86,638.62,0.2872514]
[1739267896714,0.31208064,640.86,638.63,0.2872514]
[1739267897110,0.31208064,640.86,638.64,0.2872514]
[1739267897309,0.31208064,640.86,638.65,0.2872514]
[1739267897513,0.31208064,640.86,638.66,0.2872514]
[1739267897716,0.31208064,640.86,638.67,0.2872514]
[1739267897909,0.31208064,640.86,638.68,0.2872514]
[1739267898109,0.31208064,640.86,638.55,1.1536296]
[1739267898317,0.31208064,640.86,638.7,1.1536296]
[1739267898614,0.31208064,640.86,638.71,0.93914915]
[1739267898816,0.31208064,640.86,638.72,0.28725633]
[1739267899015,0.31208064,640.86,638.73,0.28725633]
[1739267899215,0.31208064,640.86,638.74,0.28725633]
[1739267899416,0.31208064,640.86,638.75,0.28725633]
[1739267899616,0.31208064,640.86,638.76,0.28725633]
[1739267899821,0.31208064,640.86,638.71,0.65189282]
[1739267899822,0.31208064,640.86,638.77,0.28725633]
[1739267900119,0.31208064,640.86,638.78,0.28725633]
[1739267900312,0.31208064,640.86,638.72,0.28725633]
[1739267900516,0.31208064,640.86,638.73,0.28725633]
[1739267900720,0.31208064,640.86,638.78,1.1536296]
[1739267900916,0.31208064,640.86,638.79,0.93914915]
[1739267901919,0.31208064,640.86,638.78,1.1536296]
[1739267902213,0.31208064,640.86,638.79,0.93914839]
[1739267903014,0.31208064,640.86,638.79,1.4408855]
[1739267903219,0.31208064,640.86,638.8,0.2872559]
[1739267909128,0.31208064,640.86,638.79,1.1536296]
[1739267909329,0.31208064,640.86,638.8,0.28724187]
[1739267911729,0.31208064,640.86,638.9,1.1536296]
[1739267911930,0.31208064,640.86,638.91,0.28724187]
[1739267914530,0.31208064,640.86,638.96,1.1536296]
[1739267915831,0.31208064,640.86,638.97,0.28725459]
[1739267917735,1.35507753,640.81,638.97,0.28725459]
[1739267917930,1.35507753,640.81,638.85,0.28725459]
[1739267918130,0.31211473,640.79,638.84,1.1536296]
[1739267918330,0.31211473,640.79,638.85,0.28727222]
[1739267920336,1.35507753,640.73,638.86,1.1536296]
[1739267920534,0.3121537,640.71,638.87,0.28727222]
[1739267922440,1.35507753,640.49,638.91,1.1536296]
[1739267922642,0.31227067,640.47,638.92,0.28727222]
[1739267924744,0.31227067,640.47,638.94,1.1536296]
[1739267924943,0.31227067,640.47,638.95,0.28727222]
[1739267927256,0.31227067,640.47,638.94,1.1536296]
[1739267927442,0.31227067,640.47,638.95,0.28723628]
[1739267927941,0.31227067,640.47,638.96,1.1536296]
[1739267928147,0.31227067,640.47,638.97,0.28723628]
[1739267929149,0.31227067,640.47,638.96,1.1536296]
[1739267929351,0.31227067,640.47,638.97,0.93886849]
[1739267929650,0.31227067,640.47,638.98,0.28716378]
[1739267930252,0.31227067,640.47,638.97,0.93886849]
[1739267930551,0.31227067,640.47,639.23,1.1536296]
[1739267930753,0.31227067,640.47,639.24,0.28716378]
[1739267932651,0.31227067,640.47,639.25,0.28716378]
[1739267932853,0.31227067,640.47,639.18,0.28716378]
[1739267933047,0.31227067,640.47,639.19,0.28716378]
[1739267933251,0.31227067,640.47,639.18,0.28716378]
[1739267933447,0.31227067,640.47,639.19,0.28716378]
[1739267933652,0.31227067,640.47,639.2,0.28716378]
[1739267933853,0.31227067,640.47,639.18,0.28716378]
[1739267934053,0.31227067,640.47,639.19,0.28716378]
[1739267934248,0.31227067,640.47,639.18,0.28716378]
[1739267934455,0.31227067,640.47,639.17,1.1536296]
[1739267934653,0.31227067,640.47,639.18,0.28718404]
[1739267934852,0.31227067,640.47,639.08,0.28718404]
[1739267940056,0.31227067,640.47,639.07,1.1536296]
[1739267940357,0.31227067,640.47,639.08,0.28715958]
[1739267941259,0.31227067,640.47,639.02,0.28715958]
[1739267943655,0.31227067,640.47,638.99,0.28715958]
[1739267943849,0.31227067,640.47,639.0,0.28715958]
[1739267944053,0.31227067,640.47,638.99,0.28715958]
[1739267944249,0.31227067,640.47,639.0,0.28715958]
[1739267944456,0.31227067,640.47,639.01,0.28715958]
[1739267944651,0.31227067,640.47,639.02,0.28715958]
[1739267944855,0.31227067,640.47,638.99,0.65160223]
[1739267944856,0.31227067,640.47,638.99,0.93876181]
[1739267945054,0.31227067,640.47,639.0,0.28715958]
[1739267945258,0.31227067,640.47,639.01,0.28715958]
[1739267945460,0.31227067,640.47,639.02,0.28715958]
[1739267945687,0.31227067,640.47,639.03,0.28715958]
[1739267945901,0.31227067,640.47,639.13,1.1536296]
[1739267946071,0.31227067,640.47,639.14,0.93876181]
[1739267946654,0.31227067,640.47,639.15,0.28715958]
[1739267946856,0.31227067,640.47,639.16,0.287106]
[1739267947067,0.31227067,640.47,639.17,0.287106]
[1739267947365,0.31227067,640.47,639.18,0.287106]
[1739267947556,0.31227067,640.47,639.19,0.287106]
[1739267947754,0.31227067,640.47,639.2,0.287106]
[1739267947955,0.31227067,640.47,639.15,0.93869207]
[1739267948267,0.31227067,640.47,639.16,0.93869207]
[1739267948562,0.31227067,640.47,639.17,0.287106]
[1739267948759,0.31227067,640.47,639.22,1.1536296]
[1739267948955,0.31227067,640.47,639.23,0.93869207]
[1739267951554,0.31227067,640.47,639.24,0.28709279]
[1739267951753,0.31227067,640.47,639.25,0.28709279]
[1739267951957,0.31227067,640.47,639.26,0.28709279]
[1739267952168,0.31227067,640.47,639.27,0.28709279]
[1739267952362,0.31227067,640.47,639.23,0.28709279]
[1739267953055,0.31227067,640.47,639.2,0.28709279]
[1739267953257,0.31227067,640.47,639.21,0.28709279]
[1739267953455,0.31227067,640.47,639.2,0.28709279]
[1739267953659,0.31227067,640.47,639.21,0.28709279]
[1739267953860,0.31227067,640.47,639.22,0.28709279]
[1739267954161,0.31227067,640.47,639.23,0.28709279]
[1739267954362,0.31227067,640.47,639.2,0.28709279]
[1739267954562,0.31227067,640.47,639.21,0.28709279]
[1739267954762,0.31227067,640.47,639.2,0.28709279]
[1739267954965,0.31227067,640.47,639.21,0.28709279]
[1739267955161,0.31227067,640.47,639.2,0.28709279]
[1739267955356,0.31227067,640.47,639.21,0.28709279]
[1739267955563,0.31227067,640.47,639.2,0.93863958]
[1739267955762,0.31227067,640.47,638.99,1.1536296]
[1739267955960,0.31227067,640.47,639.21,0.28709108]
[1739267956163,0.31227067,640.47,639.22,0.28709108]
[1739267956360,0.31227067,640.47,639.01,0.28709108]
[1739267956561,0.31227067,640.47,639.02,0.28709108]
[1739267956767,0.31227067,640.47,639.03,0.28709108]
[1739267956957,0.31227067,640.47,639.04,0.28709108]
[1739267957165,0.31227067,640.47,639.0,0.93864724]
[1739267957362,0.31227067,640.47,639.01,0.28709108]
[1739267957562,0.31227067,640.47,639.0,0.93864724]
[1739267957766,0.31227067,640.47,638.49,1.1536296]
[1739267957767,0.31227067,640.47,639.16,1.1536296]
[1739267957965,0.31227067,640.47,639.17,0.2871217]
[1739267960460,0.31227067,640.47,639.18,0.2871217]
[1739267960767,0.31227067,640.47,639.19,0.2871217]
[1739267960968,0.31227067,640.47,639.09,1.1536296]
[1739267960969,0.31227067,640.47,639.1,0.2871217]
[1739267961362,0.31227067,640.47,639.11,0.28713452]
[1739267961661,0.31227067,640.47,639.12,0.28713452]
[1739267961872,0.31227067,640.47,639.13,0.28713452]
[1739267962066,0.31227067,640.47,639.14,0.28713452]
[1739267962267,0.31227067,640.47,639.15,0.28713452]
[1739267962469,0.31227067,640.47,639.16,0.28713452]
[1739267962667,0.31227067,640.47,639.17,0.28713452]
[1739267962861,0.31227067,640.47,639.18,0.28713452]
[1739267963066,0.31227067,640.47,639.12,0.28713452]
[1739267963266,0.31227067,640.47,639.13,0.28713452]
[1739267963464,0.31227067,640.47,639.14,0.28713452]
[1739267963666,0.31227067,640.47,639.12,0.28713452]
[1739267963961,0.31227067,640.47,639.13,0.28713452]
[1739267964165,0.31227067,640.47,639.12,0.28713452]
[1739267964363,0.31227067,640.47,639.13,0.28713452]
[1739267964566,0.31227067,640.47,639.12,0.28713452]
[1739267964769,0.31227067,640.47,639.13,0.28713452]
[1739267964968,0.31227067,640.47,639.14,0.28716696]
[1739267965268,0.31227067,640.47,639.15,0.28716696]
[1739267965464,0.31227067,640.47,639.16,0.28716696]
[1739267965672,0.31227067,640.47,639.17,0.28716696]
[1739267965864,0.31227067,640.47,639.18,0.28716696]
[1739267966065,0.31227067,640.47,639.12,0.28716696]
[1739267966270,0.31227067,640.47,639.13,0.28716696]
[1739267966470,0.31227067,640.47,639.09,0.28716696]
[1739267966664,0.31227067,640.47,639.14,0.28716696]
[1739267966865,0.31227067,640.47,639.15,0.28716696]
[1739267967069,0.31227067,640.47,639.09,0.28716696]
[1739267967270,0.31227067,640.47,639.1,0.28716696]
[1739267967567,0.31227067,640.47,639.11,0.28716696]
[1739267967773,0.31227067,640.47,639.09,0.28716696]
[1739267967973,0.31227067,640.47,639.1,0.28716696]
[1739267968167,0.31227067,640.47,639.09,0.28716696]
[1739267968371,0.31227067,640.47,639.1,0.28716696]
[1739267968574,0.31227067,640.47,639.09,0.28716696]
[1739267968773,0.31227067,640.47,639.08,1.1536296]
[1739267968774,0.31227067,640.47,639.1,0.28716696]
[1739267968968,0.31227067,640.47,639.09,1.44079656]
[1739267969167,0.31227067,640.47,639.1,0.28716696]
[1739267971980,0.31227067,640.47,639.24,1.1536296]
[1739267972176,0.31227067,640.47,639.25,0.28716696]
[1739267973976,0.31227067,640.47,639.26,0.28713223]
[1739267974175,0.31227067,640.47,639.27,0.28713223]
[1739267974376,0.31227067,640.47,639.25,0.28713223]
[1739267975675,0.31227067,640.47,639.24,1.1536296]
[1739267977175,0.31227067,640.47,631.36,0.56708745]
[1739267977176,0.31227067,640.47,639.32,1.1536296]
[1739267980481,0.31227067,640.47,638.98,1.1536296]
[1739267980675,0.31227067,640.47,638.99,0.28715748]
[1739267983278,0.31227067,640.47,639.0,0.28715748]
[1739267983578,0.31227067,640.47,639.01,0.28715748]
[1739267983779,0.31227067,640.47,639.02,0.28715748]
[1739267983978,0.31227067,640.47,639.03,0.28715748]
[1739267984186,0.31227067,640.47,639.04,0.28715748]
[1739267984477,0.31227067,640.47,639.05,0.2871179]
[1739267984688,0.31227067,640.47,639.06,0.2871179]
[1739267984875,0.31227067,640.47,639.0,0.93872855]
[1739267985074,0.31227067,640.47,639.01,0.2871179]
[1739267985274,0.31227067,640.47,639.33,1.1536296]
[1739267985478,0.31227067,640.47,639.34,0.2871179]
[1739267986273,0.31227067,640.47,639.33,1.1536296]
[1739267986477,0.31227067,640.47,639.34,0.28711903]
[1739267987992,0.31227067,640.47,639.33,1.1536296]
[1739267988180,0.31227067,640.47,639.34,0.28712267]
[1739267988379,0.31227067,640.47,639.34,1.44075227]
[1739267988580,0.31227067,640.47,639.35,0.28712267]
[1739267989885,0.31227067,640.47,639.36,0.28711591]
[1739267990087,0.31227067,640.47,639.35,0.28711591]
[1739267990282,0.31227067,640.47,639.36,0.28711591]
[1739267990484,0.31227067,640.47,639.37,0.28711591]
[1739267990783,0.31227067,640.47,639.38,0.28711591]
[1739267990983,0.31227067,640.47,639.39,0.28711591]
[1739267991177,0.31227067,640.47,639.41,1.1536296]
[1739267991585,0.31227067,640.47,639.42,0.2871306]
[1739267995582,0.31227067,640.47,639.42,1.4407602]
[1739267995787,0.31227067,640.47,639.43,0.2871306]
[1739267998293,0.31227067,640.47,639.42,1.1536296]
[1739267998583,0.31227067,640.47,639.43,1.1536296]
[1739268000992,0.31227067,640.47,639.08,1.1536296]
[1739268001192,0.31227067,640.47,639.09,0.28723428]
[1739268001592,0.31227067,640.47,639.08,1.1536296]
[1739268001891,0.31227067,640.47,639.09,0.28723559]
[1739268002297,0.31227067,640.47,639.08,1.1536296]
[1739268002995,0.31227067,640.47,639.09,1.1536296]
[1739268003403,0.31227067,640.47,639.1,0.28722353]
[1739268004695,0.31227067,640.47,639.09,1.1536296]
[1739268004988,0.31227067,640.47,639.02,1.1536296]
[1739268005194,0.31227067,640.47,639.03,0.28721755]
[1739268006597,0.31227067,640.47,639.02,1.1536296]
[1739268006802,0.31227067,640.47,639.03,0.28717535]
[1739268007398,0.31227067,640.47,639.04,0.28714896]
[1739268007689,0.31227067,640.47,639.05,0.28714896]
[1739268007890,0.31227067,640.47,638.42,1.38435552]
[1739268007891,0.31227067,640.47,639.03,0.28714896]
[1739268008095,0.31227067,640.47,639.04,0.28714896]
[1739268008296,0.31227067,640.47,639.05,0.28714896]
[1739268008610,0.31227067,640.47,639.06,0.28714896]
[1739268008798,0.31227067,640.47,638.96,0.28714896]
[1739268008989,0.31227067,640.47,638.97,0.28714896]
[1739268009193,0.31227067,640.47,638.98,0.28714896]
[1739268009399,0.31227067,640.47,638.99,0.28714896]
[1739268009600,0.31227067,640.47,639.0,0.28714896]
[1739268009795,0.31227067,640.47,639.01,0.28714896]
[1739268009996,0.31227067,640.47,639.02,0.28714896]
[1739268010298,0.31227067,640.47,639.03,0.28714896]
[1739268010497,0.31227067,640.47,639.04,0.28714896]
[1739268010698,0.31227067,640.47,639.05,0.28714896]
[1739268010898,0.31227067,640.47,639.06,0.28714896]
[1739268011199,0.31227067,640.47,639.07,0.28714896]
[1739268011400,0.31227067,640.47,639.08,0.28714896]
[1739268011601,0.31227067,640.47,639.4,1.1536296]
[1739268011792,0.31227067,640.47,639.41,0.28705429]
[1739268014207,0.31227067,640.47,639.38,0.28705429]
[1739268014403,0.31227067,640.47,639.39,0.28705429]
[1739268014594,0.31227067,640.47,639.38,0.28705429]
[1739268015803,0.31227067,640.47,639.37,1.1536296]
[1739268016000,0.31227067,640.47,639.38,0.28705241]
[1739268016705,0.31227067,640.47,639.39,0.28705241]
[1739268017004,0.31227067,640.47,639.4,0.28705241]
[1739268017198,0.31227067,640.47,639.35,0.28705241]
[1739268017404,0.31227067,640.47,639.34,1.1536296]
[1739268017405,0.31227067,640.47,639.36,0.28705241]
[1739268017605,0.31227067,640.47,639.34,1.1536296]
[1739268017801,0.31227067,640.47,639.35,0.28701253]
[1739268019300,0.31227067,640.47,639.36,0.28701253]
[1739268019506,0.31227067,640.47,639.37,0.28701253]
[1739268019701,0.31227067,640.47,639.38,0.28701253]
[1739268019897,0.31227067,640.47,639.39,0.28701253]
[1739268020099,0.31227067,640.47,639.3,0.28701253]
[1739268020302,0.31227067,640.47,639.4,0.28701253]
[1739268020606,0.31227067,640.47,639.41,0.28701253]
[1739268020800,0.31227067,640.47,639.42,0.28701253]
[1739268021002,0.31227067,640.47,639.3,0.28701253]
[1739268021198,0.31227067,640.47,639.37,1.1536296]
[1739268021401,0.31227067,640.47,639.38,0.28700156]
[1739268021904,0.31227067,640.47,639.37,1.1536296]
[1739268021905,0.31227067,640.47,639.39,0.28700816]
[1739268022107,0.31227067,640.47,639.4,0.28700816]
[1739268022307,0.31227067,640.47,639.41,0.28700816]
[1739268022606,0.31227067,640.47,639.42,0.28700816]
[1739268022907,0.31227067,640.47,639.43,0.28700816]
[1739268023108,0.31227067,640.47,639.44,0.28699652]
[1739268023306,0.31227067,640.47,639.45,0.28699652]
[1739268023607,0.31227067,640.47,639.46,0.28699652]
[1739268023808,0.31227067,640.47,639.32,0.28699652]
[1739268024108,0.31227067,640.47,639.33,0.28699652]
[1739268024307,0.31227067,640.47,639.34,0.28699652]
[1739268024506,0.31227067,640.47,639.32,0.28699652]
[1739268024702,0.31227067,640.47,639.33,0.28699652]
[1739268024908,0.31227067,640.47,639.34,0.2870366]
[1739268025110,0.31227067,640.47,639.32,0.2870366]
[1739268025406,0.31227067,640.47,639.31,1.1536296]
[1739268025407,0.31227067,640.47,639.33,0.2870366]
[1739268025606,0.31227067,640.47,639.31,1.1536296]
[1739268025607,0.31227067,640.47,639.32,0.2870366]
[1739268025806,0.31227067,640.47,639.33,0.2870366]
[1739268026007,0.31227067,640.47,639.32,0.2870366]
[1739268026208,0.31227067,640.47,639.33,0.2870366]
[1739268026409,0.31227067,640.47,639.34,0.2870366]
[1739268026604,0.31227067,640.47,639.32,0.2870366]
[1739268026808,0.31227067,640.47,639.33,0.2870366]
[1739268027010,0.31227067,640.47,639.21,0.2870366]
[1739268027213,0.31227067,640.47,639.22,0.2870366]
[1739268027438,0.31227067,640.47,639.21,0.2870366]
[1739268027711,0.31227067,640.47,639.22,0.2870366]
[1739268027911,0.31227067,640.47,639.21,0.2870366]
[1739268028110,0.31227067,640.47,639.22,0.2870366]
[1739268028305,0.31227067,640.47,639.21,0.2870366]
[1739268028610,0.31227067,640.47,639.21,0.93837442]
[1739268029204,0.31227067,640.47,639.22,0.2870366]
[1739268029404,0.31227067,640.47,639.23,0.2870366]
[1739268029608,0.31227067,640.47,639.24,0.2870366]
[1739268029807,0.31227067,640.47,639.25,0.2870366]
[1739268030010,0.31227067,640.47,639.26,0.2870366]
[1739268030206,0.31227067,640.47,639.27,0.2870366]
[1739268030413,0.31227067,640.47,639.28,0.2870366]
[1739268030611,0.31227067,640.47,639.29,0.2870366]
[1739268030810,0.31227067,640.47,639.3,0.2870366]
[1739268031018,0.31227067,640.47,639.31,0.2870366]
[1739268031212,0.31227067,640.47,639.32,0.2870366]
[1739268031419,0.31227067,640.47,639.33,0.2870366]
[1739268031709,0.31227067,640.47,639.34,0.2870366]
[1739268031914,0.31227067,640.47,639.54,1.1536296]
[1739268032117,0.31227067,640.47,639.55,0.93837442]
[1739268032509,0.31227067,640.47,639.56,0.2870366]
[1739268032714,0.31227067,640.47,639.57,0.2870366]
[1739268032909,0.31227067,640.47,639.58,0.2870366]
[1739268033216,0.31227067,640.47,639.59,0.2870366]
[1739268033408,0.31227067,640.47,639.6,0.2870366]
[1739268033613,0.31227067,640.47,639.61,0.28684712]
[1739268033820,0.31227067,640.47,639.62,0.28684712]
[1739268034115,0.31227067,640.47,639.63,0.28684712]
[1739268034318,0.31227067,640.47,639.36,1.1536296]
[1739268034319,0.31227067,640.47,639.64,0.28684712]
[1739268034517,0.31227067,640.47,639.56,0.28684712]
[1739268034713,0.31227067,640.47,639.57,0.28684712]
[1739268034915,0.31227067,640.47,639.56,0.28684712]
[1739268035115,0.31227067,640.47,639.57,0.28684712]
[1739268035517,0.31227067,640.47,639.58,0.28684712]
[1739268035719,0.31227067,640.47,639.56,0.28684712]
[1739268035916,0.31227067,640.47,639.57,0.28684712]
[1739268036119,0.31227067,640.47,639.58,0.28684712]
[1739268036315,0.31227067,640.47,639.59,0.28684712]
[1739268036516,0.31227067,640.47,639.6,0.28684712]
[1739268036714,0.31227067,640.47,639.56,0.28684712]
[1739268036921,0.31227067,640.47,639.57,0.28684712]
[1739268037117,0.31227067,640.47,639.6,1.1536296]
[1739268037320,0.31227067,640.47,639.61,0.28687748]
[1739268040215,0.31227067,640.47,639.52,1.1536296]
[1739268040216,0.31227067,640.47,639.53,0.28687748]
[1739268040422,0.31227067,640.47,639.54,0.28687748]
[1739268040622,0.31227067,640.47,639.52,1.1536296]
[1739268040825,0.31227067,640.47,639.53,0.2869428]
[1739268041220,0.31227067,640.47,639.52,1.1536296]
[1739268041423,0.31227067,640.47,639.53,0.2870378]
[1739268043025,0.31227067,640.47,639.54,0.2870378]
[1739268043223,0.31227067,640.47,639.44,0.2870378]
[1739268043426,0.31227067,640.47,639.45,0.2870378]
[1739268043627,0.31227067,640.47,639.44,0.2870378]
[1739268043824,0.31227067,640.47,639.45,0.2870378]
[1739268044019,0.31227067,640.47,639.46,0.2870378]
[1739268044220,0.31227067,640.47,639.43,1.1536296]
[1739268044426,0.31227067,640.47,639.44,0.28707713]
[1739268045143,0.31227067,640.47,639.35,0.28707713]
[1739268045326,0.31227067,640.47,639.34,1.1536296]
[1739268048330,0.31227067,640.47,638.99,1.1536296]
[1739268048528,0.31227067,640.47,639.0,0.28721112]
[1739268051132,0.31227067,640.47,639.01,0.28721112]
[1739268051330,0.31227067,640.47,639.02,0.28724206]
[1739268051531,0.31227067,640.47,639.03,0.28724206]
[1739268051831,0.31227067,640.47,639.04,0.28724206]
[1739268052031,0.31227067,640.47,639.05,0.28724206]
[1739268052231,0.31227067,640.47,639.06,0.28724206]
[1739268052431,0.31227067,640.47,638.82,0.28724206]
[1739268052932,0.31227067,640.47,638.82,0.93906556]
[1739268053330,0.31227067,640.47,638.83,0.28724206]
[1739268053630,0.31227067,640.47,638.84,0.28724206]
[1739268053833,0.31227067,640.47,638.82,0.28724206]
[1739268054133,0.31227067,640.47,638.83,0.28724206]
[1739268054334,0.31227067,640.47,638.84,0.28724206]
[1739268054529,0.31227067,640.47,638.68,0.28724206]
[1739268054733,0.31227067,640.47,638.69,0.28728379]
[1739268054930,0.31227067,640.47,638.68,0.28728379]
[1739268055228,0.31227067,640.47,638.69,0.28728379]
[1739268055431,0.31227067,640.47,638.7,0.28728379]
[1739268055631,0.31227067,640.47,638.68,0.28728379]
[1739268055831,0.31227067,640.47,638.69,0.28728379]
[1739268056029,0.31227067,640.47,638.7,0.28728379]
[1739268056232,0.31227067,640.47,638.68,0.28728379]
[1739268056536,0.31227067,640.47,638.69,0.28728379]
[1739268056734,0.31227067,640.47,638.7,0.28728379]
[1739268056936,0.31227067,640.47,638.47,0.28728379]
[1739268057233,0.31227067,640.47,638.48,0.28728379]
[1739268057436,0.31227067,640.47,638.49,0.28728379]
[1739268057632,0.31227067,640.47,638.5,0.28728379]
[1739268057837,0.31227067,640.47,638.51,0.28728379]
[1739268058035,0.31227067,640.47,638.47,0.28728379]
[1739268058236,0.31227067,640.47,638.52,0.28728379]
[1739268058537,0.31227067,640.47,638.53,0.28728379]
[1739268058737,0.31227067,640.47,638.54,0.28728379]
[1739268058938,0.31227067,640.47,638.55,0.28728379]
[1739268059139,0.31227067,640.47,638.56,0.28728379]
[1739268059340,0.31227067,640.47,638.57,0.28728379]
[1739268059642,0.31227067,640.47,638.58,0.28728379]
[1739268059840,0.31227067,640.47,638.59,0.28728379]
[1739268060139,0.31227067,640.47,638.6,0.28728379]
[1739268060339,0.31227067,640.47,638.61,0.28728379]
[1739268060539,0.31227067,640.47,638.47,0.6519568]
[1739268060540,0.31227067,640.47,638.62,0.28728379]
[1739268060735,0.31227067,640.47,638.63,0.28728379]
[1739268060940,0.31227067,640.47,638.64,0.28728379]
[1739268061142,0.31227067,640.47,638.65,0.28728379]
[1739268061443,0.31227067,640.47,638.46,0.31325376]
[1739268061444,0.31227067,640.47,638.66,0.28718811]
[1739268061746,0.31227067,640.47,638.67,0.28718811]
[1739268062041,0.31227067,640.47,638.68,0.28718811]
[1739268062353,0.31227067,640.47,638.69,0.28718811]
[1739268062543,0.31227067,640.47,638.7,0.28718811]
[1739268062757,0.31227067,640.47,638.71,0.28718811]
[1739268062940,0.31227067,640.47,638.46,0.31325376]
[1739268063143,0.31227067,640.47,638.55,1.1536296]
[1739268063342,0.31227067,640.47,638.56,1.25206617]
[1739268063646,0.31227067,640.47,638.57,1.25207104]
[1739268063847,0.31227067,640.47,638.58,1.25206614]
[1739268064044,0.31227067,640.47,638.59,1.25206123]
[1739268064244,0.31227067,640.47,638.6,0.93887124]
[1739268064443,0.31227067,640.47,638.61,0.60034516]
[1739268064647,0.31227067,640.47,638.62,1.25204652]
[1739268064842,0.31227067,640.47,638.63,1.25204162]
[1739268065047,0.31227067,640.47,638.64,1.25203671]
[1739268065244,0.31227067,640.47,638.65,1.25203181]
[1739268065441,0.31227067,640.47,638.66,1.2520269]
[1739268065641,0.31227067,640.47,638.67,1.252022]
[1739268065843,0.31227067,640.47,638.68,0.93887124]
[1739268066039,0.31227067,640.47,638.69,0.28716498]
[1739268066249,0.31227067,640.47,638.68,0.65170626]
[1739268066250,0.31227067,640.47,638.7,0.28716498]
[1739268066441,0.31227067,640.47,638.68,0.65170626]
[1739268066442,0.31227067,640.47,638.71,0.28716498]
[1739268066642,0.31227067,640.47,638.72,0.28716498]
[1739268066841,0.31227067,640.47,638.69,0.28716498]
[1739268067041,0.31227067,640.47,638.7,0.28716498]
[1739268067274,0.31227067,640.47,638.68,0.28716498]
[1739268067448,0.31227067,640.47,638.68,0.65170626]
[1739268067650,0.31227067,640.47,638.69,0.93887124]
[1739268067844,0.31227067,640.47,638.7,0.93887124]
[1739268068041,0.31227067,640.47,638.71,0.93887124]
[1739268068348,0.31227067,640.47,638.67,0.31315076]
[1739268068548,0.31227067,640.47,638.68,0.93898443]
[1739268070550,0.31227067,640.47,638.68,0.2872021]
[1739268071943,0.31227067,640.47,638.67,0.31315076]
[1739268074353,0.31227067,640.47,638.68,0.28727866]
[1739268075852,0.31227067,640.47,638.69,0.28727866]
[1739268076049,0.31227067,640.47,638.7,0.28727866]
[1739268076252,0.31227067,640.47,638.83,1.1536296]
[1739268076447,0.31227067,640.47,638.84,0.28727866]
[1739268077654,0.31227067,640.47,638.83,1.1536296]
[1739268077852,0.31227067,640.47,638.84,0.28721987]
[1739268079351,0.31227067,640.47,638.83,1.1536296]
[1739268079555,0.31227067,640.47,638.84,0.28721926]
[1739268079755,0.31227067,640.47,638.93,1.1536296]
[1739268080252,0.31227067,640.47,638.94,0.28721926]
[1739268081555,0.31227067,640.47,639.14,1.1536296]
[1739268081754,0.31227067,640.47,639.15,0.28721926]
[1739268083559,0.31227067,640.47,639.14,1.1536296]
[1739268083759,0.31227067,640.47,639.1,1.1536296]
[1739268085066,0.31227067,640.47,639.11,0.28723894]
[1739268085260,0.31227067,640.47,639.1,1.1536296]
[1739268085661,0.31227067,640.47,639.05,1.1536296]
[1739268085861,0.31227067,640.47,639.06,0.28724143]
[1739268086362,0.31227067,640.47,639.05,1.1536296]
[1739268086563,0.31227067,640.47,639.06,0.28725199]
[1739268088261,0.31227067,640.47,639.05,1.1536296]
[1739268088460,0.31227067,640.47,639.06,0.28726935]
[1739268088660,0.31227067,640.47,639.05,1.1536296]
[1739268088858,0.31227067,640.47,639.06,0.28727313]
[1739268089057,0.31227067,640.47,639.03,1.1536296]
[1739268089265,0.31227067,640.47,639.04,0.28727239]
[1739268092363,0.31227067,640.47,639.07,1.1536296]
[1739268092561,0.31227067,640.47,639.08,0.28727239]
[1739268095577,0.31227067,640.47,639.23,1.1536296]
[1739268095773,0.31227067,640.47,639.24,0.28727239]
[1739268096173,0.31227067,640.47,639.23,1.1536296]
[1739268097978,0.31227067,640.47,638.81,1.1536296]
[1739268098176,0.31227067,640.47,638.82,0.28721179]
[1739268100682,0.31227067,640.47,638.81,1.1536296]
[1739268100983,0.31227067,640.47,638.82,0.2872419]
[1739268102183,0.31227067,640.47,638.84,1.1536296]
[1739268102580,0.31227067,640.47,638.85,0.2872419]
[1739268104083,0.31227067,640.47,638.93,1.1536296]
[1739268104287,0.31227067,640.47,638.94,0.2872419]
[1739268104582,0.31227067,640.47,638.95,0.28724039]
[1739268104783,0.31227067,640.47,638.94,0.28724039]
[1739268104981,0.31227067,640.47,638.95,0.28724039]
[1739268105183,0.31227067,640.47,638.94,0.28724039]
[1739268105380,0.31227067,640.47,638.95,0.28724039]
[1739268105584,0.31227067,640.47,638.94,0.28724039]
[1739268106179,0.31227067,640.47,638.93,1.1536296]
[1739268106383,0.31227067,640.47,638.94,0.28728273]
[1739268107186,0.31227067,640.47,638.95,0.28728273]